[Event "FIDE Women Candidates 2026"]
[White "Divya Deshmukh"]
[Black "Lagno,Kateryna"]
[Site "Agios Georgios Pegeia"]
[Round "7.2"]
[Annotator "RC"]
[Result "1/2-1/2"]
[Date "2026.04.05"]
[WhiteElo "2497"]
[BlackElo "2508"]
[PlyCount "269"]
[TimeControl "60"]

1. c4 {[%emt 0:0:4]} e6 {[%emt 0:0:11]} 2. Nf3 {[%emt 0:0:7]} d5 {[%emt 0:0:15]} 3. e3 {[%emt 0:0:10]} Nf6 {[%emt 0:0:28]} 4. b3 {[%emt 0:0:11]} c5 {[%emt 0:4:23]} 5. Bb2 {[%emt 0:2:3]} Nc6 {[%emt 0:1:11]} 6. cxd5 {[%emt 0:0:15]} exd5 {[%emt 0:0:4]} 7. Bb5 {[%emt 0:0:15]} Bd6 {[%emt 0:0:38]} 8. O-O {[%emt 0:0:29]} O-O {[%emt 0:0:16]} 9. Nc3 {[%emt 0:0:1]} Bg4 {[%emt 0:9:34]} 10. Ne2 {[%emt 0:0:57]} Ne4 {[%emt 0:4:7]} 11. Ne1 {[%emt 0:0:40]} Bd7 {[%emt 0:5:6]} 12. d3 {[%emt 0:0:51]} Nf6 {[%emt 0:0:23]} 13. d4 {[%emt 0:0:9]} cxd4 {[%emt 0:15:28]} 14. Nxd4 {[%emt 0:0:24]} Rc8 {[%emt 0:6:44]} 15. Bd3 {[%emt 0:10:51]} Re8 {[%emt 0:7:10]} 16. Nef3 {[%emt 0:12:59]} Ne4 {[%emt 0:0:27]} 17. Rc1 {[%emt 0:0:50]} Qe7 {[%emt 0:12:54]} 18. Nb5 {[%emt 0:16:46]} Bb8 {[%emt 0:0:32]} 19. Nc3 {[%emt 0:0:48]} Bg4 {[%emt 0:5:13]} 20. Nxd5 {[%emt 0:9:41]} Qd6 {[%emt 0:1:36]} 21. Nf4 {[%emt 0:0:59]} Qh6 {[%emt 0:2:33]} 22. Bxe4 {[%emt 0:4:59]} Rxe4 {[%emt 0:0:5]} 23. h3 {[%emt 0:1:12]} Bxf4 {[%emt 0:7:22]} 24. hxg4 {[%emt 0:1:31]} Bd6 {[%emt 0:0:40]} 25. Qd5 {[%emt 0:11:41]} Rce8 {[%emt 0:0:33]} 26. Rfd1 {[%emt 0:2:1]} Bc7 {[%emt 0:4:50]} 27. Qh5 {[%emt 0:2:15]} Qg6 {[%emt 0:2:53]} 28. Rd7 {[%emt 0:2:11]} R4e7 {[%emt 0:0:44]} 29. Qxg6 {[%emt 0:3:25]} hxg6 {[%emt 0:0:5]} 30. Rcd1 {[%emt 0:0:57]} Rxd7 {[%emt 0:2:53]} 31. Rxd7 {[%emt 0:0:2]} Re7 {[%emt 0:0:20]} 32. Rd1 {[%emt 0:0:37]} Re4 {[%emt 0:2:10]} 33. g5 {[%emt 0:3:11]} Bd8 {[%emt 0:0:26]} 34. Rd5 {[%emt 0:3:13]} Re8 {[%emt 0:0:54]} 35. Rd7 {[%emt 0:2:13]} Re7 {[%emt 0:0:10]} 36. Rd1 {[%emt 0:0:16]} Rc7 {[%emt 0:1:6]} 37. Kf1 {[%emt 0:6:53]} Be7 {[%emt 0:0:18]} 38. Rd2 {[%emt 0:1:4]} Bb4 {[%emt 0:1:6]} 39. Rc2 {[%emt 0:1:6]} Be7 {[%emt 0:0:17]} 40. Rd2 {[%emt 0:1:0]} Bb4 {[%emt 0:0:29]} 41. Rc2 {[%emt 0:8:51]} Be7 {[%emt 0:1:9]} 42. a3 {[%emt 0:0:36]} Rd7 {[%emt 0:4:17]} 43. b4 {[%emt 0:4:45]} a6 {[%emt 0:14:57]} 44. Ke2 {[%emt 0:5:9]} Kf8 {[%emt 0:5:23]} 45. Rc4 {[%emt 0:2:7]} Rc7 {[%emt 0:1:35]} 46. Be5 {[%emt 0:3:3]} Rd7 {[%emt 0:1:56]} 47. Bb2 {[%emt 0:1:10]} Rc7 {[%emt 0:0:20]} 48. e4 {[%emt 0:1:20]} Rc8 {[%emt 0:2:20]} 49. Bc1 {[%emt 0:3:21]} Ke8 {[%emt 0:0:10]} 50. Rc2 {[%emt 0:1:17]} Kd7 {[%emt 0:3:13]} 51. Bb2 {[%emt 0:1:30]} f6 {[%emt 0:1:6]} 52. g4 {[%emt 0:1:20]} Ke6 {[%emt 0:0:12]} 53. Ke3 {[%emt 0:0:35]} Rh8 {[%emt 0:0:54]} 54. Nd4+ {[%emt 0:1:15]} Kd7 {[%emt 0:0:37]} 55. f3 {[%emt 0:0:53]} Ne5 {[%emt 0:0:27]} 56. gxf6 {[%emt 0:0:32]} gxf6 {[%emt 0:0:7]} 57. Ne2 {[%emt 0:0:56]} Rh3 {[%emt 0:0:22]} 58. Bxe5 {[%emt 0:0:21]} fxe5 {[%emt 0:0:1]} 59. Kf2 {[%emt 0:0:18]} Rh1 {[%emt 0:1:13]} 60. Rc3 {[%emt 0:1:10]} Rh2+ {[%emt 0:0:33]} 61. Ke1 {[%emt 0:0:16]} Bg5 {[%emt 0:1:4]} 62. Rd3+ {[%emt 0:0:53]} Ke6 {[%emt 0:0:8]} 63. Nc3 {[%emt 0:0:54]} Rb2 {[%emt 0:1:0]} 64. Na4 {[%emt 0:0:0]} Rb1+ {[%emt 0:0:13]} 65. Ke2 {[%emt 0:0:15]} Be7 {[%emt 0:0:12]} 66. Rc3 {[%emt 0:0:36]} Ra1 {[%emt 0:0:40]} 67. Nb6 {[%emt 0:0:20]} Ra2+ {[%emt 0:0:56]} 68. Kd1 {[%emt 0:0:23]} Bg5 {[%emt 0:2:8]} 69. Na4 {[%emt 0:0:1]} Be7 {[%emt 0:0:32]} 70. Kc1 {[%emt 0:0:4]} Rf2 {[%emt 0:0:31]} 71. Kb1 {[%emt 0:0:21]} Bd6 {[%emt 0:0:27]} 72. Nb6 {[%emt 0:0:16]} Be7 {[%emt 0:0:20]} 73. Nc4 {[%emt 0:0:17]} Bd8 {[%emt 0:0:16]} 74. Rd3 {[%emt 0:0:13]} Bc7 {[%emt 0:0:5]} 75. a4 {[%emt 0:0:31]} g5 {[%emt 0:0:42]} 76. b5 {[%emt 0:1:15]} axb5 {[%emt 0:0:4]} 77. axb5 {[%emt 0:0:1]} b6 {[%emt 0:0:7]} 78. Kc1 {[%emt 0:0:36]} Rf1+ {[%emt 0:0:14]} 79. Kc2 {[%emt 0:0:48]} Rf2+ {[%emt 0:0:15]} 80. Kd1 {[%emt 0:0:5]} Rf1+ {[%emt 0:0:24]} 81. Kd2 {[%emt 0:0:13]} Rb1 {[%emt 0:0:13]} 82. Na3 {[%emt 0:0:36]} Ra1 {[%emt 0:0:20]} 83. Nc4 {[%emt 0:0:54]} Rb1 {[%emt 0:0:5]} 84. Rd5 {[%emt 0:1:28]} Rb3 {[%emt 0:0:6]} 85. Ke2 {[%emt 0:1:21]} Rb4 {[%emt 0:0:10]} 86. Kd3 {[%emt 0:0:8]} Rb3+ {[%emt 0:0:4]} 87. Ke2 {[%emt 0:0:2]} Rb4 {[%emt 0:0:3]} 88. Ne3 {[%emt 0:1:20]} Bd6 {[%emt 0:0:3]} 89. Nf5 {[%emt 0:0:7]} Bc5 {[%emt 0:0:16]} 90. Ng7+ {[%emt 0:0:4]} Kf7 {[%emt 0:1:14]} 91. Rd7+ {[%emt 0:1:19]} Kg6 {[%emt 0:0:57]} 92. Ne6 {[%emt 0:0:32]} Rxb5 {[%emt 0:1:19]} 93. Nxc5 {[%emt 0:0:31]} bxc5 {[%emt 0:0:28]} 94. Kd3 {[%emt 0:0:27]} Rb4 {[%emt 0:1:18]} 95. Kc3 {[%emt 0:0:36]} Kf6 {[%emt 0:1:6]} 96. Rd6+ {[%emt 0:0:6]} Kf7 {[%emt 0:0:3]} 97. Rd5 {[%emt 0:0:5]} Kf6 {[%emt 0:0:8]} 98. Rxc5 {[%emt 0:0:5]} Ra4 {[%emt 0:0:9]} 99. Rc6+ {[%emt 0:0:21]} Kf7 {[%emt 0:0:3]} 100. Rb6 {[%emt 0:0:17]} Ra3+ {[%emt 0:0:37]} 101. Rb3 {[%emt 0:0:1]} Ra4 {[%emt 0:0:12]} 102. Rb7+ {[%emt 0:0:43]} Kf6 {[%emt 0:0:4]} 103. Rb6+ {[%emt 0:0:1]} Kf7 {[%emt 0:0:4]} 104. Rb7+ {[%emt 0:1:20]} Kf6 {[%emt 0:0:4]} 105. Rb8 {[%emt 0:0:2]} Kf7 {[%emt 0:0:33]} 106. Rb6 {[%emt 0:0:46]} Ra3+ {[%emt 0:0:18]} 107. Rb3 {[%emt 0:0:5]} Ra4 {[%emt 0:0:9]} 108. Kb2 {[%emt 0:1:2]} Kf6 {[%emt 0:1:1]} 109. Rb6+ {[%emt 0:0:4]} Kf7 {[%emt 0:0:4]} 110. Rd6 {[%emt 0:0:12]} Rc4 {[%emt 0:0:28]} 111. Rd8 {[%emt 0:0:45]} Rc6 {[%emt 0:0:44]} 112. Kb3 {[%emt 0:0:53]} Rc1 {[%emt 0:0:42]} 113. Rd3 {[%emt 0:0:17]} Ke6 {[%emt 0:0:27]} 114. Rd8 {[%emt 0:0:25]} Kf7 {[%emt 0:0:32]} 115. Rd7+ {[%emt 0:0:12]} Kf6 {[%emt 0:0:24]} 116. Rd8 {[%emt 0:1:14]} Kf7 {[%emt 0:0:11]} 117. Rd3 {[%emt 0:1:48]} Kf6 {[%emt 0:0:13]} 118. Kb4 {[%emt 0:0:0]} Ke6 {[%emt 0:1:14]} 119. Ra3 {[%emt 0:0:0]} Rb1+ {[%emt 0:1:25]} 120. Kc5 {[%emt 0:0:0]} Rc1+ {[%emt 0:0:17]} 121. Kb6 {[%emt 0:0:0]} Kd6 {[%emt 0:0:58]} 122. Kb7 {[%emt 0:0:26]} Kd7 {[%emt 0:0:37]} 123. Rb3 {[%emt 0:0:39]} Rc2 {[%emt 0:0:18]} 124. Rb5 {[%emt 0:2:35]} Rc3 {[%emt 0:1:21]} 125. Rxe5 {[%emt 0:0:11]} Rb3+ {[%emt 0:0:2]} 126. Ka6 {[%emt 0:0:47]} Rxf3 {[%emt 0:0:5]} 127. Rxg5 {[%emt 0:0:32]} Rf4 {[%emt 0:0:35]} 128. e5 {[%emt 0:0:35]} Ke6 {[%emt 0:0:4]} 129. Kb7 {[%emt 0:0:29]} Re4 {[%emt 0:0:11]} 130. Kc7 {[%emt 0:0:31]} Rxe5 {[%emt 0:0:6]} 131. Rg8 {[%emt 0:0:14]} Kf7 {[%emt 0:0:7]} 132. Kd6 {[%emt 0:0:42]} Ra5 {[%emt 0:0:21]} 133. Rb8 {[%emt 0:0:19]} Ra4 {[%emt 0:0:9]} 134. g5 {[%emt 0:0:22]} Ra5 {[%emt 0:0:6]} 135. g6+ {[%emt 0:0:14]} 1/2-1/2

[Event "FIDE Women Candidates 2026"]
[White "Goryachkina,Aleksandra"]
[Black "Zhu,Jiner"]
[Site "Agios Georgios Pegeia"]
[Round "7.3"]
[Annotator "RC"]
[Result "1/2-1/2"]
[Date "2026.04.05"]
[WhiteElo "2534"]
[BlackElo "2578"]
[PlyCount "139"]
[TimeControl "60"]

1. e4 {[%emt 0:0:6]} e5 {[%emt 0:0:22]} 2. Nf3 {[%emt 0:0:6]} Nc6 {[%emt 0:0:7]} 3. Bb5 {[%emt 0:0:11]} a6 {[%emt 0:0:18]} 4. Ba4 {[%emt 0:0:7]} Nf6 {[%emt 0:0:13]} 5. O-O {[%emt 0:0:19]} Nxe4 {[%emt 0:0:39]} 6. d4 {[%emt 0:0:40]} Be7 {[%emt 0:0:30]} 7. Re1 {[%emt 0:2:27]} b5 {[%emt 0:0:15]} 8. Rxe4 {[%emt 0:0:47]} d5 {[%emt 0:0:27]} 9. Nxe5 {[%emt 0:0:56]} Nxe5 {[%emt 0:0:10]} 10. Rxe5 {[%emt 0:0:6]} bxa4 {[%emt 0:0:4]} 11. b3 {[%emt 0:5:35]} O-O {[%emt 0:0:56]} 12. Ba3 {[%emt 0:0:24]} Bxa3 {[%emt 0:0:8]} 13. Nxa3 {[%emt 0:0:6]} Re8 {[%emt 0:0:5]} 14. Rxe8+ {[%emt 0:0:55]} Qxe8 {[%emt 0:0:6]} 15. Nb1 {[%emt 0:1:34]} Qc6 {[%emt 0:0:20]} 16. Qd2 {[%emt 0:0:58]} axb3 {[%emt 0:0:7]} 17. cxb3 {[%emt 0:4:26]} Bd7 {[%emt 0:0:41]} 18. Nc3 {[%emt 0:8:12]} Re8 {[%emt 0:1:8]} 19. h3 {[%emt 0:6:34]} h6 {[%emt 0:1:43]} 20. Re1 {[%emt 0:4:13]} Rxe1+ {[%emt 0:1:24]} 21. Qxe1 {[%emt 0:0:2]} Qd6 {[%emt 0:0:7]} 22. Qe3 {[%emt 0:6:19]} a5 {[%emt 0:0:59]} 23. h4 {[%emt 0:6:3]} Kh8 {[%emt 0:17:41]} 24. Ne2 {[%emt 0:4:24]} Qa3 {[%emt 0:1:41]} 25. Qd2 {[%emt 0:3:26]} c5 {[%emt 0:2:15]} 26. dxc5 {[%emt 0:6:17]} Qxc5 {[%emt 0:0:35]} 27. Nd4 {[%emt 0:6:14]} Kg8 {[%emt 0:0:51]} 28. Kh2 {[%emt 0:0:53]} Qd6+ {[%emt 0:1:13]} 29. g3 {[%emt 0:0:32]} Qc5 {[%emt 0:0:17]} 30. Kg2 {[%emt 0:0:43]} Kh8 {[%emt 0:0:47]} 31. f3 {[%emt 0:3:0]} Kg8 {[%emt 0:0:38]} 32. g4 {[%emt 0:2:32]} Qc7 {[%emt 0:6:13]} 33. Qe3 {[%emt 0:1:1]} Qd6 {[%emt 0:0:41]} 34. g5 {[%emt 0:4:15]} hxg5 {[%emt 0:8:41]} 35. hxg5 {[%emt 0:0:6]} g6 {[%emt 0:0:49]} 36. Ne2 {[%emt 0:5:17]} Bb5 {[%emt 0:1:32]} 37. Nc3 {[%emt 0:1:42]} Bc6 {[%emt 0:3:9]} 38. Qb6 {[%emt 0:5:36]} Qd7 {[%emt 0:1:49]} 39. Ne2 {[%emt 0:5:56]} Qe7 {[%emt 0:5:8]} 40. Kf2 {[%emt 0:1:26]} Be8 {[%emt 0:0:9]} 41. Qe3 {[%emt 0:34:34]} Kf8 {[%emt 0:45:41]} 42. Nf4 {[%emt 0:0:0]} Bc6 {[%emt 0:0:0]} 43. Nd3 {[%emt 0:0:0]} d4 {[%emt 0:0:0]} 44. Qf4 {[%emt 0:0:0]} Bb5 {[%emt 0:3:15]} 45. Ne5 {[%emt 0:0:0]} Kg8 {[%emt 0:0:45]} 46. Qf6 {[%emt 0:0:0]} Qc7 {[%emt 0:2:47]} 47. Ng4 {[%emt 0:0:0]} d3 {[%emt 0:6:2]} 48. Qd4 {[%emt 0:0:0]} Kf8 {[%emt 0:1:27]} 49. a4 {[%emt 0:0:0]} Bd7 {[%emt 0:5:8]} 50. Qh8+ {[%emt 0:1:52]} Ke7 {[%emt 0:0:4]} 51. Qf6+ {[%emt 0:0:9]} Kf8 {[%emt 0:0:23]} 52. Qh8+ {[%emt 0:0:52]} Ke7 {[%emt 0:0:4]} 53. Qe5+ {[%emt 0:0:28]} Kd8 {[%emt 0:3:49]} 54. Qxc7+ {[%emt 0:1:38]} Kxc7 {[%emt 0:0:4]} 55. Ne5 {[%emt 0:0:12]} Be6 {[%emt 0:0:4]} 56. Nc4 {[%emt 0:0:14]} Kc6 {[%emt 0:0:4]} 57. Nxa5+ {[%emt 0:2:27]} Kc5 {[%emt 0:0:21]} 58. Nc4 {[%emt 0:0:41]} Kb4 {[%emt 0:0:59]} 59. Nd2 {[%emt 0:0:33]} Bxb3 {[%emt 0:0:27]} 60. a5 {[%emt 0:0:13]} Bd5 {[%emt 0:1:36]} 61. a6 {[%emt 0:0:21]} Kc3 {[%emt 0:4:56]} 62. Ke3 {[%emt 0:0:4]} Ba8 {[%emt 0:0:6]} 63. a7 {[%emt 0:0:8]} Kc2 {[%emt 0:0:28]} 64. Ne4 {[%emt 0:1:23]} Bc6 {[%emt 0:0:17]} 65. f4 {[%emt 0:0:17]} Ba8 {[%emt 0:0:11]} 66. Nd2 {[%emt 0:1:34]} Bc6 {[%emt 0:1:32]} 67. Nc4 {[%emt 0:1:6]} Ba8 {[%emt 0:0:44]} 68. Nd2 {[%emt 0:0:18]} Bc6 {[%emt 0:0:6]} 69. Nf1 {[%emt 0:0:16]} Ba8 {[%emt 0:0:44]} 70. Nd2 {[%emt 0:0:23]} 1/2-1/2

[Event "FIDE Women Candidates 2026"]
[White "Vaishali,Rameshbabu"]
[Black "Tan,Zhongyi"]
[Site "Agios Georgios Pegeia"]
[Round "7.4"]
[Annotator "RC"]
[Result "1-0"]
[Date "2026.04.05"]
[WhiteElo "2470"]
[BlackElo "2535"]
[PlyCount "101"]
[TimeControl "60"]

1. e4 {[%emt 0:0:23]} d6 {[%emt 0:0:6]} 2. d4 {[%emt 0:0:7]} Nf6 {[%emt 0:0:6]} 3. Bd3 {[%emt 0:0:18]} e5 {[%emt 0:1:4]} 4. c3 {[%emt 0:0:19]} Nbd7 {[%emt 0:0:38]} 5. Bc2 {[%emt 0:2:17]} b6 {[%emt 0:10:33]} 6. Ne2 {[%emt 0:8:6]} Bb7 {[%emt 0:2:43]} 7. Nd2 {[%emt 0:5:46]} g6 {[%emt 0:0:54]} 8. O-O {[%emt 0:0:23]} Bg7 {[%emt 0:0:12]} 9. f4 {[%emt 0:17:54]} O-O {[%emt 0:0:28]} 10. Ng3 {[%emt 0:12:47]} Ba6 {[%emt 0:8:47]} 11. Rf3 {[%emt 0:5:26]} exd4 {[%emt 0:16:10]} 12. cxd4 {[%emt 0:0:6]} c5 {[%emt 0:0:31]} 13. e5 {[%emt 0:7:5]} Ne8 {[%emt 0:1:21]} 14. Be4 {[%emt 0:19:53]} Rc8 {[%emt 0:0:35]} 15. Ra3 {[%emt 0:2:6]} Nb8 {[%emt 0:0:31]} 16. Rxa6 {[%emt 0:2:51]} Nxa6 {[%emt 0:0:5]} 17. Bb7 {[%emt 0:0:3]} Rb8 {[%emt 0:9:29]} 18. Bxa6 {[%emt 0:0:3]} b5 {[%emt 0:0:3]} 19. a4 {[%emt 0:0:13]} Qa5 {[%emt 0:1:16]} 20. Bxb5 {[%emt 0:3:53]} Rxb5 {[%emt 0:0:40]} 21. Nb3 {[%emt 0:7:2]} Rxb3 {[%emt 0:0:7]} 22. Qxb3 {[%emt 0:0:2]} cxd4 {[%emt 0:2:11]} 23. exd6 {[%emt 0:3:54]} Qe1+ {[%emt 0:0:15]} 24. Nf1 {[%emt 0:0:1]} Nxd6 {[%emt 0:0:14]} 25. Qg3 {[%emt 0:1:9]} Qe2 {[%emt 0:6:19]} 26. Qf2 {[%emt 0:0:50]} d3 {[%emt 0:0:35]} 27. Be3 {[%emt 0:10:4]} Ne4 {[%emt 0:19:43]} 28. Qxe2 {[%emt 0:0:0]} dxe2 {[%emt 0:0:4]} 29. Ng3 {[%emt 0:0:0]} Re8 {[%emt 0:0:15]} 30. Nxe4 {[%emt 0:0:0]} Rxe4 {[%emt 0:0:13]} 31. Kf2 {[%emt 0:0:0]} Bxb2 {[%emt 0:0:26]} 32. Re1 {[%emt 0:0:0]} Rxa4 {[%emt 0:3:25]} 33. Rxe2 {[%emt 0:0:0]} Bf6 {[%emt 0:0:8]} 34. Rc2 {[%emt 0:0:0]} h5 {[%emt 0:0:29]} 35. Kf3 {[%emt 0:0:0]} a5 {[%emt 0:0:10]} 36. Rc6 {[%emt 0:0:0]} Kg7 {[%emt 0:0:18]} 37. Ra6 {[%emt 0:0:0]} Ra1 {[%emt 0:1:23]} 38. Rxf6 {[%emt 0:0:0]} Rf1+ {[%emt 0:5:20]} 39. Ke2 {[%emt 0:0:0]} Kxf6 {[%emt 0:1:23]} 40. Kxf1 {[%emt 0:0:0]} Kf5 {[%emt 0:0:6]} 41. Ke2 {[%emt 0:26:27]} Ke4 {[%emt 0:30:6]} 42. g3 {[%emt 0:0:22]} a4 {[%emt 0:0:12]} 43. Bc5 {[%emt 0:1:19]} h4 {[%emt 0:1:1]} 44. Be7 {[%emt 0:0:35]} hxg3 {[%emt 0:0:24]} 45. hxg3 {[%emt 0:0:3]} Kd4 {[%emt 0:0:38]} 46. Kf3 {[%emt 0:0:8]} f5 {[%emt 0:1:4]} 47. Bf8 {[%emt 0:0:23]} Kd3 {[%emt 0:0:12]} 48. Kg2 {[%emt 0:0:28]} Ke3 {[%emt 0:0:30]} 49. Kh3 {[%emt 0:0:18]} Kf2 {[%emt 0:0:16]} 50. Kh4 {[%emt 0:0:2]} Kf3 {[%emt 0:0:13]} 51. Bd6 {[%emt 0:0:5]} 1-0

[Event "FIDE Women Candidates 2026"]
[White "Muzychuk,Anna"]
[Black "Divya Deshmukh"]
[Site "Agios Georgios Pegeia"]
[Round "8.1"]
[Annotator "RC"]
[Result "0-1"]
[Date "2026.04.07"]
[WhiteElo "2522"]
[BlackElo "2497"]
[PlyCount "166"]
[TimeControl "60"]

1. e4 {[%emt 0:0:4]} c5 {[%emt 0:0:8]} 2. Nf3 {[%emt 0:0:6]} g6 {[%emt 0:0:5]} 3. c4 {[%emt 0:3:16]} Nc6 {[%emt 0:0:28]} 4. d4 {[%emt 0:0:16]} cxd4 {[%emt 0:0:16]} 5. Nxd4 {[%emt 0:0:6]} Nf6 {[%emt 0:1:18]} 6. Nc3 {[%emt 0:0:13]} d6 {[%emt 0:0:7]} 7. Be2 {[%emt 0:4:41]} Nxd4 {[%emt 0:0:28]} 8. Qxd4 {[%emt 0:0:6]} Bg7 {[%emt 0:0:5]} 9. Be3 {[%emt 0:1:37]} O-O {[%emt 0:1:35]} 10. Qd3 {[%emt 0:1:36]} Ng4 {[%emt 0:21:41]} 11. Bxg4 {[%emt 0:0:42]} Bxg4 {[%emt 0:0:6]} 12. O-O {[%emt 0:0:59]} Be6 {[%emt 0:6:9]} 13. Bd4 {[%emt 0:5:20]} Bxd4 {[%emt 0:11:19]} 14. Qxd4 {[%emt 0:0:27]} Qc7 {[%emt 0:0:3]} 15. b3 {[%emt 0:0:52]} Qc5 {[%emt 0:0:33]} 16. Qd3 {[%emt 0:1:25]} Rfc8 {[%emt 0:1:54]} 17. Rfe1 {[%emt 0:9:45]} a6 {[%emt 0:3:12]} 18. a4 {[%emt 0:8:59]} Rc7 {[%emt 0:1:37]} 19. Re3 {[%emt 0:5:39]} Rac8 {[%emt 0:12:9]} 20. Rae1 {[%emt 0:4:0]} Qe5 {[%emt 0:11:19]} 21. h3 {[%emt 0:5:50]} b6 {[%emt 0:2:23]} 22. Nd5 {[%emt 0:6:10]} Bxd5 {[%emt 0:1:44]} 23. exd5 {[%emt 0:0:7]} Qf6 {[%emt 0:0:24]} 24. Rf3 {[%emt 0:6:56]} Qg7 {[%emt 0:1:9]} 25. h4 {[%emt 0:7:38]} f6 {[%emt 0:5:53]} 26. Qd4 {[%emt 0:5:16]} Rb8 {[%emt 0:0:47]} 27. Rfe3 {[%emt 0:2:37]} Rbb7 {[%emt 0:1:12]} 28. Re6 {[%emt 0:1:31]} Qh6 {[%emt 0:4:27]} 29. g3 {[%emt 0:5:58]} Qf8 {[%emt 0:4:25]} 30. h5 {[%emt 0:1:51]} g5 {[%emt 0:1:33]} 31. Kg2 {[%emt 0:6:14]} Qa8 {[%emt 0:2:19]} 32. Ra1 {[%emt 0:0:44]} Qc8 {[%emt 0:0:39]} 33. Rae1 {[%emt 0:2:27]} Qa8 {[%emt 0:0:9]} 34. f4 {[%emt 0:1:35]} gxf4 {[%emt 0:0:18]} 35. Qxf4 {[%emt 0:0:11]} b5 {[%emt 0:1:58]} 36. h6 {[%emt 0:1:28]} Qf8 {[%emt 0:0:24]} 37. cxb5 {[%emt 0:1:28]} axb5 {[%emt 0:0:0]} 38. a5 {[%emt 0:0:17]} Rc5 {[%emt 0:1:25]} 39. Qg4+ {[%emt 0:0:51]} Kh8 {[%emt 0:0:3]} 40. b4 {[%emt 0:0:32]} Rc4 {[%emt 0:4:10]} 41. R6e4 {[%emt 0:13:14]} Rxe4 {[%emt 0:21:58]} 42. Rxe4 {[%emt 0:2:47]} Rc7 {[%emt 0:0:52]} 43. Qe2 {[%emt 0:3:54]} Qxh6 {[%emt 0:5:2]} 44. Qxb5 {[%emt 0:9:11]} Rc2+ {[%emt 0:0:48]} 45. Re2 {[%emt 0:0:6]} Qg6 {[%emt 0:0:3]} 46. Rxc2 {[%emt 0:0:49]} Qxc2+ {[%emt 0:0:1]} 47. Kf3 {[%emt 0:0:15]} Qd1+ {[%emt 0:1:59]} 48. Kf2 {[%emt 0:1:58]} Qd2+ {[%emt 0:0:16]} 49. Kf3 {[%emt 0:1:22]} Qd1+ {[%emt 0:0:1]} 50. Kf2 {[%emt 0:1:20]} Qd2+ {[%emt 0:0:6]} 51. Qe2 {[%emt 0:0:19]} Qxb4 {[%emt 0:0:54]} 52. a6 {[%emt 0:0:23]} Qb6+ {[%emt 0:1:27]} 53. Kg2 {[%emt 0:0:17]} Qa7 {[%emt 0:2:11]} 54. Qb5 {[%emt 0:0:29]} Kg7 {[%emt 0:0:4]} 55. Qa4 {[%emt 0:0:55]} h5 {[%emt 0:0:48]} 56. Qa2 {[%emt 0:0:24]} Kf7 {[%emt 0:0:15]} 57. Qe2 {[%emt 0:0:20]} Kf8 {[%emt 0:0:55]} 58. Kh3 {[%emt 0:0:30]} Qg1 {[%emt 0:0:41]} 59. a7 {[%emt 0:0:49]} Qxa7 {[%emt 0:0:58]} 60. Qxh5 {[%emt 0:0:1]} Qe3 {[%emt 0:0:23]} 61. Qh8+ {[%emt 0:0:50]} Kf7 {[%emt 0:0:1]} 62. Qh5+ {[%emt 0:0:14]} Kg7 {[%emt 0:0:11]} 63. Qe8 {[%emt 0:0:53]} Qe4 {[%emt 0:0:49]} 64. Kh2 {[%emt 0:0:29]} Qe2+ {[%emt 0:0:55]} 65. Kg1 {[%emt 0:0:26]} Qe1+ {[%emt 0:0:17]} 66. Kg2 {[%emt 0:0:6]} Qd2+ {[%emt 0:0:1]} 67. Kh3 {[%emt 0:0:14]} Qe2 {[%emt 0:0:2]} 68. g4 {[%emt 0:0:32]} Qf3+ {[%emt 0:0:32]} 69. Kh2 {[%emt 0:0:16]} Qe4 {[%emt 0:1:5]} 70. Kg3 {[%emt 0:0:21]} Qe5+ {[%emt 0:0:22]} 71. Kh3 {[%emt 0:0:21]} f5 {[%emt 0:0:18]} 72. gxf5 {[%emt 0:0:52]} Qxf5+ {[%emt 0:0:8]} 73. Kg3 {[%emt 0:0:17]} Qg5+ {[%emt 0:0:26]} 74. Kf2 {[%emt 0:1:39]} Kf6 {[%emt 0:1:19]} 75. Qh8+ {[%emt 0:0:12]} Kf5 {[%emt 0:0:57]} 76. Qc8+ {[%emt 0:0:24]} Kf6 {[%emt 0:0:31]} 77. Qh8+ {[%emt 0:0:5]} Kg6 {[%emt 0:0:57]} 78. Qg8+ {[%emt 0:0:30]} Kh6 {[%emt 0:0:12]} 79. Qh8+ {[%emt 0:0:24]} Kg6 {[%emt 0:0:1]} 80. Qg8+ {[%emt 0:0:5]} Kh5 {[%emt 0:0:12]} 81. Qf7+ {[%emt 0:1:36]} Kh4 {[%emt 0:0:3]} 82. Qh7+ {[%emt 0:0:43]} Kg4 {[%emt 0:0:2]} 83. Kf1 {[%emt 0:0:47]} Qf5+ {[%emt 0:0:5]} 0-1

[Event "FIDE Women Candidates 2026"]
[White "Assaubayeva,Bibisara"]
[Black "Vaishali,Rameshbabu"]
[Site "Agios Georgios Pegeia"]
[Round "8.2"]
[Annotator "RC"]
[Result "1/2-1/2"]
[Date "2026.04.07"]
[WhiteElo "2516"]
[BlackElo "2470"]
[PlyCount "147"]
[TimeControl "60"]

1. e4 {[%emt 0:0:2]} e5 {[%emt 0:0:27]} 2. Nf3 {[%emt 0:0:6]} Nc6 {[%emt 0:0:4]} 3. Bc4 {[%emt 0:0:6]} Nf6 {[%emt 0:0:9]} 4. d3 {[%emt 0:0:5]} h6 {[%emt 0:0:8]} 5. Nc3 {[%emt 0:0:33]} Bb4 {[%emt 0:0:39]} 6. O-O {[%emt 0:1:42]} Bxc3 {[%emt 0:0:24]} 7. bxc3 {[%emt 0:0:6]} O-O {[%emt 0:0:6]} 8. Re1 {[%emt 0:2:30]} d6 {[%emt 0:0:23]} 9. h3 {[%emt 0:1:37]} Na5 {[%emt 0:1:16]} 10. Bb3 {[%emt 0:0:15]} c5 {[%emt 0:0:20]} 11. Nd2 {[%emt 0:5:59]} Be6 {[%emt 0:0:46]} 12. Bxe6 {[%emt 0:8:2]} fxe6 {[%emt 0:0:3]} 13. Nf1 {[%emt 0:0:10]} Nc6 {[%emt 0:9:53]} 14. f4 {[%emt 0:6:51]} exf4 {[%emt 0:32:25]} 15. Bxf4 {[%emt 0:0:50]} Ne7 {[%emt 0:1:18]} 16. Bxd6 {[%emt 0:1:37]} Qxd6 {[%emt 0:0:26]} 17. e5 {[%emt 0:0:5]} Qc6 {[%emt 0:1:40]} 18. exf6 {[%emt 0:0:7]} Rxf6 {[%emt 0:0:2]} 19. Nh2 {[%emt 0:6:11]} Raf8 {[%emt 0:6:17]} 20. Ng4 {[%emt 0:1:48]} Rf5 {[%emt 0:2:52]} 21. Qe2 {[%emt 0:10:32]} Nd5 {[%emt 0:3:10]} 22. Qe4 {[%emt 0:5:47]} h5 {[%emt 0:2:57]} 23. Nh2 {[%emt 0:10:12]} Rf4 {[%emt 0:13:41]} 24. Qxe6+ {[%emt 0:6:42]} Qxe6 {[%emt 0:0:6]} 25. Rxe6 {[%emt 0:0:4]} Rf2 {[%emt 0:3:56]} 26. c4 {[%emt 0:4:35]} Nb4 {[%emt 0:1:54]} 27. a3 {[%emt 0:1:56]} Nxc2 {[%emt 0:1:40]} 28. Ra2 {[%emt 0:0:37]} Rd2 {[%emt 0:1:0]} 29. Nf3 {[%emt 0:1:21]} Rd1+ {[%emt 0:0:12]} 30. Kh2 {[%emt 0:0:1]} Nd4 {[%emt 0:1:34]} 31. Nxd4 {[%emt 0:0:6]} cxd4 {[%emt 0:0:3]} 32. Rb2 {[%emt 0:1:44]} b6 {[%emt 0:1:3]} 33. Re7 {[%emt 0:2:5]} h4 {[%emt 0:5:49]} 34. Re4 {[%emt 0:4:25]} Rff1 {[%emt 0:0:38]} 35. Rxh4 {[%emt 0:0:19]} Rh1+ {[%emt 0:0:4]} 36. Kg3 {[%emt 0:0:5]} Rxd3+ {[%emt 0:0:4]} 37. Kf2 {[%emt 0:0:26]} Rc1 {[%emt 0:1:43]} 38. Ke2 {[%emt 0:10:27]} Rcc3 {[%emt 0:3:32]} 39. a4 {[%emt 0:2:18]} Rg3 {[%emt 0:4:31]} 40. Kf2 {[%emt 0:1:30]} d3 {[%emt 0:1:19]} 41. Rd4 {[%emt 0:33:33]} Rxg2+ {[%emt 0:4:3]} 42. Kxg2 {[%emt 0:0:0]} Rc2+ {[%emt 0:0:2]} 43. Kg3 {[%emt 0:0:0]} Rxb2 {[%emt 0:0:4]} 44. Rxd3 {[%emt 0:0:0]} Ra2 {[%emt 0:1:2]} 45. Rd8+ {[%emt 0:0:0]} Kh7 {[%emt 0:0:2]} 46. c5 {[%emt 0:0:0]} Ra3+ {[%emt 0:4:10]} 47. Kg2 {[%emt 0:0:0]} Rxa4 {[%emt 0:0:11]} 48. cxb6 {[%emt 0:0:0]} axb6 {[%emt 0:0:2]} 49. Rb8 {[%emt 0:0:0]} Rb4 {[%emt 0:0:6]} 50. Rb7 {[%emt 0:0:0]} Rb3 {[%emt 0:0:52]} 51. h4 {[%emt 0:0:0]} Kh6 {[%emt 0:2:4]} 52. h5 {[%emt 0:0:0]} Kh7 {[%emt 0:8:30]} 53. Kf2 {[%emt 0:0:0]} Kh6 {[%emt 0:4:28]} 54. Kg2 {[%emt 0:0:0]} Rb5 {[%emt 0:0:4]} 55. Kf3 {[%emt 0:0:0]} Rb1 {[%emt 0:0:46]} 56. Kg2 {[%emt 0:0:0]} Rb4 {[%emt 0:1:50]} 57. Kf3 {[%emt 0:0:0]} Rb5 {[%emt 0:0:18]} 58. Kf4 {[%emt 0:0:0]} Rb1 {[%emt 0:0:49]} 59. Kf3 {[%emt 0:0:0]} Rf1+ {[%emt 0:2:49]} 60. Kg4 {[%emt 0:0:0]} Rg1+ {[%emt 0:0:28]} 61. Kf3 {[%emt 0:0:0]} Kxh5 {[%emt 0:3:28]} 62. Rxb6 {[%emt 0:0:0]} Kh4 {[%emt 0:0:14]} 63. Rb8 {[%emt 0:0:0]} Rg3+ {[%emt 0:0:20]} 64. Kf2 {[%emt 0:0:0]} g5 {[%emt 0:0:6]} 65. Rh8+ {[%emt 0:0:0]} Kg4 {[%emt 0:0:3]} 66. Ra8 {[%emt 0:0:8]} Rb3 {[%emt 0:0:31]} 67. Kg2 {[%emt 0:0:6]} Rb2+ {[%emt 0:0:3]} 68. Kg1 {[%emt 0:0:6]} Kg3 {[%emt 0:0:15]} 69. Ra3+ {[%emt 0:0:5]} Kh4 {[%emt 0:0:3]} 70. Ra4+ {[%emt 0:0:7]} g4 {[%emt 0:0:4]} 71. Ra3 {[%emt 0:0:4]} g3 {[%emt 0:0:5]} 72. Ra8 {[%emt 0:0:8]} Rb1+ {[%emt 0:0:6]} 73. Kg2 {[%emt 0:0:4]} Rb2+ {[%emt 0:0:3]} 74. Kg1 {[%emt 0:0:6]} 1/2-1/2